[Event "Late-Titled-Tuesday-Blitz-June-18-2024"]
[Site "Chess.com"]
[Date "2024.06.18"]
[Round "6"]
[White "pouya21"]
[Black "Grischuk"]
[Result "0-1"]
[WhiteElo "2813"]
[BlackElo "3125"]
[TimeControl "180+1"]
[EndTime "15:09:01 PDT"]
[Termination "Grischuk won by resignation"]

1. e4 {[%clk 0:03:00.9]} 1... e5 {[%clk 0:03:00.2]} 2. Nf3 {[%clk 0:02:59.3]}
2... Nc6 {[%clk 0:03:00.8]} 3. Bc4 {[%clk 0:02:57]} 3... Bc5 {[%clk 0:03:00.1]}
4. Nc3 {[%clk 0:02:56]} 4... Nf6 {[%clk 0:02:58.6]} 5. d3 {[%clk 0:02:55.9]}
5... h6 {[%clk 0:02:54.3]} 6. O-O {[%clk 0:02:52.9]} 6... O-O {[%clk 0:02:48.3]}
7. h3 {[%clk 0:02:50.7]} 7... d6 {[%clk 0:02:48.4]} 8. a4 {[%clk 0:02:51]} 8...
Be6 {[%clk 0:02:32.1]} 9. Re1 {[%clk 0:02:13.1]} 9... Bxc4 {[%clk 0:02:22.8]}
10. dxc4 {[%clk 0:02:14]} 10... a5 {[%clk 0:02:23.7]} 11. Be3 {[%clk 0:02:06.7]}
11... Bb4 {[%clk 0:02:22.1]} 12. Bd2 {[%clk 0:02:05.8]} 12... Bxc3 {[%clk
0:02:19.6]} 13. Bxc3 {[%clk 0:02:06.7]} 13... Nd7 {[%clk 0:02:18.5]} 14. b3
{[%clk 0:02:00.9]} 14... Kh8 {[%clk 0:02:17]} 15. Nh2 {[%clk 0:01:57.6]} 15...
b6 {[%clk 0:02:09]} 16. Ng4 {[%clk 0:01:55.5]} 16... f6 {[%clk 0:01:51.7]} 17.
Ne3 {[%clk 0:01:53]} 17... Ne7 {[%clk 0:01:52.1]} 18. Qe2 {[%clk 0:01:48.8]}
18... Qe8 {[%clk 0:01:51.6]} 19. Rad1 {[%clk 0:01:48.4]} 19... Qf7 {[%clk
0:01:48.9]} 20. Bb2 {[%clk 0:01:44.1]} 20... Rae8 {[%clk 0:01:46.8]} 21. Qg4
{[%clk 0:01:39.9]} 21... Nc5 {[%clk 0:01:44.5]} 22. Nf5 {[%clk 0:01:30.3]} 22...
Kh7 {[%clk 0:01:29.8]} 23. Bc1 {[%clk 0:01:29.2]} 23... Qg6 {[%clk 0:01:23]} 24.
Qf3 {[%clk 0:01:21.5]} 24... Ne6 {[%clk 0:01:19.7]} 25. Be3 {[%clk 0:01:17]}
25... Qf7 {[%clk 0:01:09]} 26. Kh1 {[%clk 0:01:07.5]} 26... Ng8 {[%clk
0:01:03.5]} 27. Ng3 {[%clk 0:01:03.3]} 27... g6 {[%clk 0:01:01.6]} 28. Ne2
{[%clk 0:00:51.8]} 28... f5 {[%clk 0:01:00.4]} 29. g3 {[%clk 0:00:44.4]} 29...
f4 {[%clk 0:00:54.1]} 30. gxf4 {[%clk 0:00:44.3]} 30... exf4 {[%clk 0:00:53.7]}
31. Bc1 {[%clk 0:00:33.3]} 31... Ng5 {[%clk 0:00:53.8]} 32. Qg4 {[%clk
0:00:33.9]} 32... Nxe4 {[%clk 0:00:51.2]} 33. Kg1 {[%clk 0:00:32.2]} 33... g5
{[%clk 0:00:42.8]} 34. Nd4 {[%clk 0:00:30.4]} 34... Ngf6 {[%clk 0:00:41.7]} 35.
Qf5+ {[%clk 0:00:29.5]} 35... Qg6 {[%clk 0:00:41.9]} 36. Bb2 {[%clk 0:00:26.8]}
36... Qxf5 {[%clk 0:00:35.9]} 37. Nxf5 {[%clk 0:00:27.7]} 37... Kg6 {[%clk
0:00:36.5]} 38. Nd4 {[%clk 0:00:27.8]} 38... Rf7 {[%clk 0:00:21.1]} 39. Nb5
{[%clk 0:00:23.6]} 39... Rfe7 {[%clk 0:00:20.9]} 40. Kf1 {[%clk 0:00:18.5]}
40... Nd2+ {[%clk 0:00:18.1]} 41. Rxd2 {[%clk 0:00:12.3]} 41... Rxe1+ {[%clk
0:00:19]} 42. Kg2 {[%clk 0:00:13.2]} 42... R8e2 {[%clk 0:00:18.9]} 0-1

[Event "Late-Titled-Tuesday-Blitz-June-18-2024"]
[Site "Chess.com"]
[Date "2024.06.18"]
[Round "6"]
[White "marszach123"]
[Black "Patolindo"]
[Result "0-1"]
[WhiteElo "1921"]
[BlackElo "2168"]
[TimeControl "180+1"]
[EndTime "15:09:01 PDT"]
[Termination "Patolindo won on time"]

1. e4 {[%clk 0:03:00.9]} 1... c5 {[%clk 0:02:59.7]} 2. Nf3 {[%clk 0:03:00.3]}
2... d6 {[%clk 0:02:59.7]} 3. c3 {[%clk 0:03:00.5]} 3... Nf6 {[%clk 0:02:59.7]}
4. g3 {[%clk 0:02:59.9]} 4... Nc6 {[%clk 0:02:59.7]} 5. d3 {[%clk 0:02:59.3]}
5... c4 {[%clk 0:02:58.5]} 6. d4 {[%clk 0:02:41.6]} 6... Nxe4 {[%clk 0:02:52.9]}
7. Bxc4 {[%clk 0:02:42.1]} 7... d5 {[%clk 0:02:47.8]} 8. Bb5 {[%clk 0:02:40.7]}
8... Bh3 {[%clk 0:02:45.9]} 9. Ne5 {[%clk 0:02:37.4]} 9... Qb6 {[%clk
0:02:30.8]} 10. a4 {[%clk 0:02:14.9]} 10... a6 {[%clk 0:02:28.6]} 11. Bxc6+
{[%clk 0:02:11.8]} 11... bxc6 {[%clk 0:02:29.5]} 12. Qh5 {[%clk 0:02:11.1]}
12... Be6 {[%clk 0:02:22.2]} 13. f4 {[%clk 0:02:08]} 13... g6 {[%clk 0:02:11.5]}
14. Qf3 {[%clk 0:01:55.7]} 14... Bg7 {[%clk 0:02:02.2]} 15. O-O {[%clk
0:01:55.1]} 15... O-O {[%clk 0:02:01.7]} 16. a5 {[%clk 0:01:42.7]} 16... Qb7
{[%clk 0:01:57.6]} 17. b4 {[%clk 0:01:32.1]} 17... h5 {[%clk 0:01:53.2]} 18. Nd2
{[%clk 0:01:31.6]} 18... Bg4 {[%clk 0:01:37.6]} 19. Qd3 {[%clk 0:01:00]} 19...
Bf5 {[%clk 0:01:35.5]} 20. Nxe4 {[%clk 0:00:56.5]} 20... Bxe4 {[%clk 0:01:34.7]}
21. Qe2 {[%clk 0:00:49]} 21... f6 {[%clk 0:01:34.5]} 22. Nd3 {[%clk 0:00:47.6]}
22... Qb5 {[%clk 0:01:30.5]} 23. Rd1 {[%clk 0:00:40.4]} 23... e5 {[%clk
0:01:29.8]} 24. dxe5 {[%clk 0:00:26.7]} 24... fxe5 {[%clk 0:01:29.7]} 25. Qf1
{[%clk 0:00:16.1]} 25... exf4 {[%clk 0:01:19.3]} 26. Nxf4 {[%clk 0:00:12.7]}
26... Bxc3 {[%clk 0:01:11.2]} 27. Qxb5 {[%clk 0:00:11.2]} 27... axb5 {[%clk
0:01:08.8]} 28. Ra3 {[%clk 0:00:10.9]} 28... Bxb4 {[%clk 0:01:06]} 29. Re3
{[%clk 0:00:10.8]} 29... Bc5 {[%clk 0:01:05.6]} 30. Kf2 {[%clk 0:00:09.2]} 30...
g5 {[%clk 0:01:05.1]} 31. Ke2 {[%clk 0:00:06.9]} 31... Bxe3 {[%clk 0:01:00.7]}
32. Kxe3 {[%clk 0:00:05]} 32... gxf4+ {[%clk 0:01:00.9]} 33. gxf4 {[%clk
0:00:05.9]} 33... Rxa5 {[%clk 0:01:00.6]} 34. Rg1+ {[%clk 0:00:06.8]} 34... Kh7
{[%clk 0:01:00.1]} 35. Kd4 {[%clk 0:00:06.8]} 35... b4 {[%clk 0:00:53.8]} 36.
Ke5 {[%clk 0:00:05.4]} 36... b3 {[%clk 0:00:53.3]} 37. Bb2 {[%clk 0:00:05.1]}
37... Ra2 {[%clk 0:00:51.3]} 38. Bd4 {[%clk 0:00:05.6]} 38... Rd2 {[%clk
0:00:48.6]} 39. Be3 {[%clk 0:00:04.7]} 39... Rd3 {[%clk 0:00:45.4]} 40. Bc5
{[%clk 0:00:03.6]} 40... Rf5+ {[%clk 0:00:43.8]} 41. Ke6 {[%clk 0:00:03.1]}
41... b2 {[%clk 0:00:43.8]} 42. h4 {[%clk 0:00:02.2]} 42... Rxf4 {[%clk
0:00:41]} 43. Bd6 {[%clk 0:00:01.7]} 43... Bf5+ {[%clk 0:00:40.2]} 44. Ke7
{[%clk 0:00:01.3]} 44... Re3+ {[%clk 0:00:39.5]} 45. Kd8 {[%clk 0:00:01]} 45...
Rg4 {[%clk 0:00:39.5]} 0-1

[Event "Late-Titled-Tuesday-Blitz-June-18-2024"]
[Site "Chess.com"]
[Date "2024.06.18"]
[Round "6"]
[White "romulocardoso"]
[Black "ChessAdvanceUSA"]
[Result "0-1"]
[WhiteElo "2313"]
[BlackElo "2476"]
[TimeControl "180+1"]
[EndTime "15:09:02 PDT"]
[Termination "ChessAdvanceUSA won by resignation"]

1. e4 {[%clk 0:03:00.9]} 1... g6 {[%clk 0:02:54]} 2. Nf3 {[%clk 0:02:57.7]} 2...
Bg7 {[%clk 0:02:53.9]} 3. d4 {[%clk 0:02:57.2]} 3... d5 {[%clk 0:02:54]} 4. exd5
{[%clk 0:02:50.5]} 4... Nf6 {[%clk 0:02:47.9]} 5. Nc3 {[%clk 0:02:50.3]} 5...
Nxd5 {[%clk 0:02:46.1]} 6. Bc4 {[%clk 0:02:50.6]} 6... c6 {[%clk 0:02:44.9]} 7.
O-O {[%clk 0:02:49.7]} 7... O-O {[%clk 0:02:44.8]} 8. Re1 {[%clk 0:02:49]} 8...
Bg4 {[%clk 0:02:43.5]} 9. Nxd5 {[%clk 0:02:46.3]} 9... cxd5 {[%clk 0:02:42.1]}
10. Be2 {[%clk 0:02:47]} 10... Nc6 {[%clk 0:02:41.4]} 11. c3 {[%clk 0:02:44.9]}
11... e6 {[%clk 0:02:39.9]} 12. h3 {[%clk 0:02:40.8]} 12... Bxf3 {[%clk
0:02:39.3]} 13. Bxf3 {[%clk 0:02:41.7]} 13... b5 {[%clk 0:02:31.3]} 14. Bf4
{[%clk 0:02:41.4]} 14... a5 {[%clk 0:02:23.9]} 15. Qd2 {[%clk 0:02:28.5]} 15...
b4 {[%clk 0:02:23.1]} 16. Bh6 {[%clk 0:02:28.5]} 16... Qb6 {[%clk 0:02:20.9]}
17. Bxg7 {[%clk 0:02:28.2]} 17... Kxg7 {[%clk 0:02:20.6]} 18. Rad1 {[%clk
0:02:13.2]} 18... Rfc8 {[%clk 0:02:13]} 19. c4 {[%clk 0:01:59.7]} 19... dxc4
{[%clk 0:02:06.7]} 20. d5 {[%clk 0:02:00.6]} 20... Rd8 {[%clk 0:01:47.7]} 21.
Qg5 {[%clk 0:01:59.1]} 21... exd5 {[%clk 0:01:40]} 22. Bxd5 {[%clk 0:02:00]}
22... Qc5 {[%clk 0:01:31.5]} 23. h4 {[%clk 0:01:51.3]} 23... h6 {[%clk
0:01:29.4]} 24. Qd2 {[%clk 0:01:33.5]} 24... Ne7 {[%clk 0:01:22.8]} 25. Bxa8
{[%clk 0:01:30.4]} 25... Rxd2 {[%clk 0:01:22.2]} 26. Rxd2 {[%clk 0:01:31.3]}
26... c3 {[%clk 0:01:16.3]} 27. bxc3 {[%clk 0:01:32.2]} 27... bxc3 {[%clk
0:01:16.7]} 28. Rc2 {[%clk 0:01:28.3]} 28... Nf5 {[%clk 0:01:13.7]} 29. h5
{[%clk 0:01:20.7]} 29... Nd4 {[%clk 0:01:04.9]} 30. Rcc1 {[%clk 0:01:09.7]}
30... c2 {[%clk 0:01:01.5]} 31. Be4 {[%clk 0:01:07.6]} 31... gxh5 {[%clk
0:00:56.8]} 32. Bxc2 {[%clk 0:01:04.2]} 32... Nxc2 {[%clk 0:00:53.4]} 33. Re2
{[%clk 0:01:04.2]} 33... h4 {[%clk 0:00:43.8]} 34. Rexc2 {[%clk 0:01:03.8]}
34... Qg5 {[%clk 0:00:43]} 35. Rc5 {[%clk 0:01:02.5]} 35... Qd2 {[%clk
0:00:39.5]} 36. R5c2 {[%clk 0:00:58.5]} 36... Qd8 {[%clk 0:00:35.1]} 37. Rc8
{[%clk 0:00:57.1]} 37... Qg5 {[%clk 0:00:33.8]} 38. R8c5 {[%clk 0:00:56.8]}
38... Qd2 {[%clk 0:00:19.2]} 39. R1c2 {[%clk 0:00:57]} 39... Qe1+ {[%clk
0:00:15.9]} 40. Kh2 {[%clk 0:00:57.6]} 40... h3 {[%clk 0:00:14.5]} 41. Kxh3
{[%clk 0:00:57.2]} 41... Qh1+ {[%clk 0:00:14.4]} 42. Kg3 {[%clk 0:00:57.6]}
42... h5 {[%clk 0:00:13.9]} 43. Rg5+ {[%clk 0:00:54.4]} 43... Kf6 {[%clk
0:00:11.1]} 44. Rxa5 {[%clk 0:00:55]} 44... h4+ {[%clk 0:00:11.2]} 45. Kf3
{[%clk 0:00:44.2]} 45... h3 {[%clk 0:00:11]} 46. Re2 {[%clk 0:00:45.1]} 46...
hxg2 {[%clk 0:00:07.2]} 47. Ra6+ {[%clk 0:00:34.1]} 47... Kg7 {[%clk 0:00:06.8]}
48. Re1 {[%clk 0:00:34.4]} 48... g1=Q+ {[%clk 0:00:06.9]} 0-1

[Event "Late-Titled-Tuesday-Blitz-June-18-2024"]
[Site "Chess.com"]
[Date "2024.06.18"]
[Round "6"]
[White "sirinbaba33"]
[Black "Mikhail_Golubev"]
[Result "0-1"]
[WhiteElo "2506"]
[BlackElo "2669"]
[TimeControl "180+1"]
[EndTime "15:09:03 PDT"]
[Termination "Mikhail_Golubev won on time"]

1. e4 {[%clk 0:03:00.9]} 1... c5 {[%clk 0:02:59.4]} 2. Nf3 {[%clk 0:03:00.7]}
2... d6 {[%clk 0:02:59.6]} 3. d4 {[%clk 0:03:00.5]} 3... Nf6 {[%clk 0:02:59.7]}
4. Nc3 {[%clk 0:02:59.4]} 4... cxd4 {[%clk 0:02:59.9]} 5. Nxd4 {[%clk
0:03:00.3]} 5... Nc6 {[%clk 0:03:00.1]} 6. Bg5 {[%clk 0:02:59.3]} 6... e6 {[%clk
0:03:00.3]} 7. Qd2 {[%clk 0:02:58.9]} 7... a6 {[%clk 0:03:00.6]} 8. Nxc6 {[%clk
0:02:58.8]} 8... bxc6 {[%clk 0:02:59.9]} 9. O-O-O {[%clk 0:02:59.3]} 9... Be7
{[%clk 0:02:53.9]} 10. Bc4 {[%clk 0:02:49.4]} 10... d5 {[%clk 0:02:45.9]} 11.
Bb3 {[%clk 0:02:48.8]} 11... O-O {[%clk 0:02:35.7]} 12. Rhe1 {[%clk 0:02:47.5]}
12... a5 {[%clk 0:02:31.3]} 13. e5 {[%clk 0:02:07.6]} 13... Nd7 {[%clk
0:02:27.9]} 14. Bxe7 {[%clk 0:02:06.8]} 14... Qxe7 {[%clk 0:02:28.8]} 15. Na4
{[%clk 0:02:01.7]} 15... Nc5 {[%clk 0:02:20.8]} 16. Kb1 {[%clk 0:01:52.8]} 16...
Nxa4 {[%clk 0:01:33.6]} 17. Bxa4 {[%clk 0:01:50.8]} 17... c5 {[%clk 0:01:34.2]}
18. c3 {[%clk 0:01:43.1]} 18... Bd7 {[%clk 0:01:28.3]} 19. Bc2 {[%clk 0:01:32]}
19... Rfb8 {[%clk 0:01:13.1]} 20. Ka1 {[%clk 0:01:31.8]} 20... Bb5 {[%clk
0:01:00.1]} 21. f4 {[%clk 0:01:27.4]} 21... a4 {[%clk 0:00:56.9]} 22. a3 {[%clk
0:01:27.3]} 22... Bc4 {[%clk 0:00:51.9]} 23. Rb1 {[%clk 0:01:25.6]} 23... Rb6
{[%clk 0:00:35.6]} 24. g3 {[%clk 0:01:15.7]} 24... Qb7 {[%clk 0:00:28.3]} 25. f5
{[%clk 0:01:04.3]} 25... Rb8 {[%clk 0:00:26.3]} 26. Bxa4 {[%clk 0:00:31.7]}
26... Qa6 {[%clk 0:00:25.1]} 27. f6 {[%clk 0:00:27.8]} 27... Bd3 {[%clk
0:00:08.3]} 28. Bc2 {[%clk 0:00:25.1]} 28... Bxc2 {[%clk 0:00:05.3]} 29. Qxc2
{[%clk 0:00:26]} 29... gxf6 {[%clk 0:00:04.2]} 30. exf6 {[%clk 0:00:25.8]} 30...
Rb3 {[%clk 0:00:04.4]} 31. Re3 {[%clk 0:00:16.7]} 31... c4 {[%clk 0:00:04.4]}
32. Rf3 {[%clk 0:00:12.2]} 32... Ra8 {[%clk 0:00:04.5]} 33. Rbf1 {[%clk
0:00:06.3]} 33... Rxa3+ {[%clk 0:00:04.6]} 34. bxa3 {[%clk 0:00:05.6]} 34...
Qxa3+ {[%clk 0:00:05.2]} 0-1

[Event "Late-Titled-Tuesday-Blitz-June-18-2024"]
[Site "Chess.com"]
[Date "2024.06.18"]
[Round "6"]
[White "Oleg_Papayan"]
[Black "KarlEmilElmer"]
[Result "0-1"]
[WhiteElo "2523"]
[BlackElo "2298"]
[TimeControl "180+1"]
[EndTime "15:09:07 PDT"]
[Termination "KarlEmilElmer won by checkmate"]

1. d4 {[%clk 0:03:00.9]} 1... Nf6 {[%clk 0:02:59.8]} 2. Nc3 {[%clk 0:03:00.2]}
2... d5 {[%clk 0:02:59.5]} 3. Bf4 {[%clk 0:02:59.5]} 3... g6 {[%clk 0:02:57.6]}
4. e3 {[%clk 0:02:58.4]} 4... Bg7 {[%clk 0:02:57.3]} 5. h4 {[%clk 0:02:58.7]}
5... h5 {[%clk 0:02:56.5]} 6. Qd2 {[%clk 0:02:55.8]} 6... O-O {[%clk 0:02:56.3]}
7. Nf3 {[%clk 0:02:54.5]} 7... c5 {[%clk 0:02:54.9]} 8. O-O-O {[%clk 0:02:53.3]}
8... c4 {[%clk 0:02:54.1]} 9. Ne5 {[%clk 0:02:50.2]} 9... Qa5 {[%clk 0:02:48.4]}
10. a3 {[%clk 0:02:47.9]} 10... b5 {[%clk 0:02:45.9]} 11. f3 {[%clk 0:02:39.3]}
11... Na6 {[%clk 0:02:26.7]} 12. Nc6 {[%clk 0:02:22.1]} 12... Qb6 {[%clk
0:02:22.5]} 13. Nxe7+ {[%clk 0:02:22.2]} 13... Kh8 {[%clk 0:02:21.4]} 14. Nexd5
{[%clk 0:02:18.3]} 14... Nxd5 {[%clk 0:02:19.5]} 15. Nxd5 {[%clk 0:02:19.2]}
15... Qb7 {[%clk 0:02:19.4]} 16. e4 {[%clk 0:02:12.2]} 16... Be6 {[%clk
0:02:19.3]} 17. Nb4 {[%clk 0:01:38]} 17... Nxb4 {[%clk 0:02:19.4]} 18. axb4
{[%clk 0:01:38.2]} 18... a5 {[%clk 0:02:18.1]} 19. bxa5 {[%clk 0:01:39.1]} 19...
b4 {[%clk 0:02:16.9]} 20. Bd6 {[%clk 0:00:59.2]} 20... Rxa5 {[%clk 0:02:16.7]}
21. Qxb4 {[%clk 0:00:59.5]} 21... Bh6+ {[%clk 0:01:51.6]} 22. Kb1 {[%clk
0:00:57.6]} 22... Rfa8 {[%clk 0:01:19.1]} 23. c3 {[%clk 0:00:49.3]} 23... Rb5
{[%clk 0:00:26.6]} 24. d5 {[%clk 0:00:36.1]} 24... Rxb4 {[%clk 0:00:27]} 25.
Bxb4 {[%clk 0:00:37]} 25... Bd7 {[%clk 0:00:25.7]} 26. Bxc4 {[%clk 0:00:37.1]}
26... Ba4 {[%clk 0:00:24.8]} 27. b3 {[%clk 0:00:36.7]} 27... Bb5 {[%clk
0:00:25.1]} 28. Kb2 {[%clk 0:00:26.1]} 28... Bxc4 {[%clk 0:00:24.9]} 29. bxc4
{[%clk 0:00:27]} 29... Bg7 {[%clk 0:00:21.9]} 30. Kb3 {[%clk 0:00:26.1]} 30...
Rc8 {[%clk 0:00:14]} 31. d6 {[%clk 0:00:23.8]} 31... Qc6 {[%clk 0:00:13.2]} 32.
c5 {[%clk 0:00:20.9]} 32... Rb8 {[%clk 0:00:13.2]} 33. d7 {[%clk 0:00:18.3]}
33... Rd8 {[%clk 0:00:09.1]} 34. Rd6 {[%clk 0:00:17.6]} 34... Qc7 {[%clk
0:00:05.9]} 35. Rhd1 {[%clk 0:00:18]} 35... Bf8 {[%clk 0:00:05.3]} 36. R6d5
{[%clk 0:00:17.4]} 36... Qc6 {[%clk 0:00:04.1]} 37. R1d3 {[%clk 0:00:17.3]}
37... Qe6 {[%clk 0:00:04.3]} 38. c4 {[%clk 0:00:16.6]} 38... Qa6 {[%clk
0:00:03.1]} 39. c6 {[%clk 0:00:15.5]} 39... Bxb4 {[%clk 0:00:03]} 40. c7 {[%clk
0:00:15.8]} 40... Qa3+ {[%clk 0:00:02.6]} 41. Kc2 {[%clk 0:00:16.4]} 41... Qa2+
{[%clk 0:00:03]} 42. Kd1 {[%clk 0:00:16]} 42... Qb1+ {[%clk 0:00:03.2]} 43. Ke2
{[%clk 0:00:16.5]} 43... Qe1# {[%clk 0:00:03.6]} 0-1

[Event "Late-Titled-Tuesday-Blitz-June-18-2024"]
[Site "Chess.com"]
[Date "2024.06.18"]
[Round "6"]
[White "Individoom"]
[Black "RantomOpening"]
[Result "0-1"]
[WhiteElo "2787"]
[BlackElo "2624"]
[TimeControl "180+1"]
[EndTime "15:09:08 PDT"]
[Termination "RantomOpening won by resignation"]

1. d4 {[%clk 0:03:00.9]} 1... g6 {[%clk 0:02:57.9]} 2. Nf3 {[%clk 0:02:59.9]}
2... Bg7 {[%clk 0:02:58.1]} 3. e4 {[%clk 0:02:56.2]} 3... d6 {[%clk 0:02:58.1]}
4. h3 {[%clk 0:02:54.3]} 4... Nc6 {[%clk 0:02:57.5]} 5. c3 {[%clk 0:02:53.3]}
5... e5 {[%clk 0:02:56.9]} 6. Bc4 {[%clk 0:02:47.3]} 6... Nf6 {[%clk 0:02:55]}
7. d5 {[%clk 0:02:41.6]} 7... Ne7 {[%clk 0:02:54.4]} 8. Bd3 {[%clk 0:02:32.5]}
8... O-O {[%clk 0:02:53.7]} 9. g4 {[%clk 0:02:24]} 9... c6 {[%clk 0:02:13.3]}
10. c4 {[%clk 0:02:22.8]} 10... cxd5 {[%clk 0:02:11.6]} 11. cxd5 {[%clk
0:02:22.7]} 11... Nd7 {[%clk 0:02:09.8]} 12. Nc3 {[%clk 0:02:22.4]} 12... Nc5
{[%clk 0:02:08.9]} 13. Bc2 {[%clk 0:02:17.6]} 13... f5 {[%clk 0:02:04.5]} 14.
gxf5 {[%clk 0:02:05.2]} 14... gxf5 {[%clk 0:02:05.4]} 15. Rg1 {[%clk 0:02:05]}
15... f4 {[%clk 0:02:04.4]} 16. b4 {[%clk 0:01:53.1]} 16... Na6 {[%clk
0:02:01.7]} 17. a3 {[%clk 0:01:52.2]} 17... Ng6 {[%clk 0:01:59.5]} 18. Ng5
{[%clk 0:01:46.4]} 18... Nc7 {[%clk 0:01:57.2]} 19. Qh5 {[%clk 0:01:43.7]} 19...
h6 {[%clk 0:01:50]} 20. Qxg6 {[%clk 0:01:40.7]} 20... hxg5 {[%clk 0:01:49.8]}
21. Rxg5 {[%clk 0:01:40.6]} 21... Qf6 {[%clk 0:01:49.6]} 22. Qh5 {[%clk
0:01:20.2]} 22... Bd7 {[%clk 0:01:49.8]} 23. Rg1 {[%clk 0:01:04.9]} 23... Be8
{[%clk 0:01:44.3]} 24. Qf3 {[%clk 0:01:02.9]} 24... Kh7 {[%clk 0:01:33.7]} 25.
Bb2 {[%clk 0:01:01.3]} 25... Qh6 {[%clk 0:01:26.2]} 26. Bd1 {[%clk 0:00:59.5]}
26... Bg6 {[%clk 0:01:18.3]} 27. Be2 {[%clk 0:00:58.7]} 27... Ne8 {[%clk
0:01:13.2]} 28. O-O-O {[%clk 0:00:35.2]} 28... Rc8 {[%clk 0:01:12.2]} 29. Kb1
{[%clk 0:00:34.7]} 29... Nf6 {[%clk 0:01:12.1]} 30. Qd3 {[%clk 0:00:31.4]} 30...
Rxc3 {[%clk 0:01:11.4]} 31. Qxc3 {[%clk 0:00:31.1]} 31... Nxe4 {[%clk
0:01:11.6]} 32. Qc7 {[%clk 0:00:27.2]} 32... Nxf2+ {[%clk 0:00:48.9]} 33. Ka1
{[%clk 0:00:26.7]} 33... Nxd1 {[%clk 0:00:49]} 34. Bxd1 {[%clk 0:00:19.9]} 34...
f3 {[%clk 0:00:49.1]} 35. Rxg6 {[%clk 0:00:16.4]} 35... Qxg6 {[%clk 0:00:43.7]}
36. Bc2 {[%clk 0:00:16.5]} 36... f2 {[%clk 0:00:44.2]} 37. Bxg6+ {[%clk
0:00:13.8]} 37... Kxg6 {[%clk 0:00:45.1]} 38. Qxd6+ {[%clk 0:00:13.7]} 38... Kh7
{[%clk 0:00:45.4]} 39. Ka2 {[%clk 0:00:11.5]} 39... f1=Q {[%clk 0:00:45.2]} 40.
Qc7 {[%clk 0:00:11.2]} 40... Qf2 {[%clk 0:00:30.8]} 41. d6 {[%clk 0:00:04.4]}
41... Qf7+ {[%clk 0:00:27.4]} 42. Kb1 {[%clk 0:00:01]} 42... Qxc7 {[%clk
0:00:26.4]} 43. dxc7 {[%clk 0:00:01.4]} 43... Rc8 {[%clk 0:00:26.8]} 0-1

[Event "Late-Titled-Tuesday-Blitz-June-18-2024"]
[Site "Chess.com"]
[Date "2024.06.18"]
[Round "6"]
[White "Durarbayli"]
[Black "ZverevLev"]
[Result "0-1"]
[WhiteElo "2937"]
[BlackElo "2744"]
[TimeControl "180+1"]
[EndTime "15:09:11 PDT"]
[Termination "ZverevLev won on time"]

1. e4 {[%clk 0:03:00.9]} 1... e5 {[%clk 0:02:59]} 2. Nf3 {[%clk 0:03:00.8]} 2...
Nc6 {[%clk 0:02:58.6]} 3. Bb5 {[%clk 0:02:59.9]} 3... a6 {[%clk 0:02:58.6]} 4.
Ba4 {[%clk 0:03:00.1]} 4... Nf6 {[%clk 0:02:58.6]} 5. d3 {[%clk 0:02:59.4]} 5...
Bc5 {[%clk 0:02:58.3]} 6. Bxc6 {[%clk 0:02:59]} 6... dxc6 {[%clk 0:02:58.1]} 7.
Nbd2 {[%clk 0:02:58.8]} 7... Bd6 {[%clk 0:02:53.4]} 8. Nc4 {[%clk 0:02:57.5]}
8... Qe7 {[%clk 0:02:53.3]} 9. O-O {[%clk 0:02:53.1]} 9... O-O {[%clk
0:02:53.2]} 10. b3 {[%clk 0:02:52.8]} 10... b5 {[%clk 0:02:46.5]} 11. Ne3 {[%clk
0:02:52.6]} 11... a5 {[%clk 0:02:46.2]} 12. a4 {[%clk 0:02:52.1]} 12... h6
{[%clk 0:02:43.9]} 13. Bd2 {[%clk 0:02:41]} 13... Be6 {[%clk 0:02:40.3]} 14.
axb5 {[%clk 0:02:21.1]} 14... cxb5 {[%clk 0:02:41.2]} 15. Bxa5 {[%clk
0:02:19.1]} 15... b4 {[%clk 0:02:38.7]} 16. Nd2 {[%clk 0:02:13.9]} 16... Bc5
{[%clk 0:02:31.1]} 17. Ndc4 {[%clk 0:02:10.7]} 17... Bxe3 {[%clk 0:02:28.1]} 18.
fxe3 {[%clk 0:01:45.2]} 18... Bxc4 {[%clk 0:02:25.2]} 19. bxc4 {[%clk
0:01:43.2]} 19... Qc5 {[%clk 0:02:24.4]} 20. d4 {[%clk 0:01:36.2]} 20... Qxc4
{[%clk 0:02:13.8]} 21. Qd3 {[%clk 0:01:32.4]} 21... Qxd3 {[%clk 0:02:05.3]} 22.
cxd3 {[%clk 0:01:33.3]} 22... b3 {[%clk 0:01:48.5]} 23. dxe5 {[%clk 0:01:17.6]}
23... Ng4 {[%clk 0:01:46.9]} 24. Rfb1 {[%clk 0:01:07.8]} 24... Rfb8 {[%clk
0:01:18]} 25. Bc3 {[%clk 0:00:40.4]} 25... Rxa1 {[%clk 0:01:14.6]} 26. Bxa1
{[%clk 0:00:41.3]} 26... Nxe3 {[%clk 0:01:14.5]} 27. Kf2 {[%clk 0:00:39.1]}
27... Nc2 {[%clk 0:01:14.4]} 28. Bc3 {[%clk 0:00:30.3]} 28... Na3 {[%clk
0:00:58.6]} 29. Rb2 {[%clk 0:00:28.8]} 29... c5 {[%clk 0:00:58.6]} 30. Ke3
{[%clk 0:00:26.3]} 30... c4 {[%clk 0:00:56.9]} 31. d4 {[%clk 0:00:09.3]} 31...
Nb5 {[%clk 0:00:51.8]} 32. Be1 {[%clk 0:00:03.5]} 32... Ra8 {[%clk 0:00:45.7]}
33. d5 {[%clk 0:00:03.9]} 33... Ra2 {[%clk 0:00:45.4]} 34. Rb1 {[%clk
0:00:03.7]} 34... Na3 {[%clk 0:00:44.5]} 35. Rd1 {[%clk 0:00:02.5]} 35... b2
{[%clk 0:00:42.9]} 36. d6 {[%clk 0:00:02.9]} 36... Ra1 {[%clk 0:00:33.7]} 37. d7
{[%clk 0:00:01.4]} 37... Rxd1 {[%clk 0:00:33.7]} 38. Bd2 {[%clk 0:00:02.3]}
38... b1=Q {[%clk 0:00:27.6]} 39. d8=Q+ {[%clk 0:00:02]} 39... Kh7 {[%clk
0:00:27.8]} 40. e6 {[%clk 0:00:02.4]} 40... fxe6 {[%clk 0:00:26.3]} 41. Ke2
{[%clk 0:00:02.9]} 41... c3 {[%clk 0:00:19]} 0-1